[Event "Early-Titled-Tuesday-Blitz-November-28-2023"]
[Site "Chess.com"]
[Date "2023.11.28"]
[Round "1"]
[White "Kirill_Klukin"]
[Black "szachmistrz2500"]
[Result "1-0"]
[WhiteElo "2857"]
[BlackElo "2476"]
[TimeControl "180+1"]
[EndTime "8:05:55 PST"]
[Termination "Kirill_Klukin won by resignation"]

1. d4 {[%clk 0:03:00.9]} 1... d5 {[%clk 0:02:59.5]} 2. c4 {[%clk 0:03:01.1]}
2... c6 {[%clk 0:02:59.8]} 3. Nc3 {[%clk 0:03:01]} 3... Nf6 {[%clk 0:02:59.2]}
4. Nf3 {[%clk 0:03:01.7]} 4... a6 {[%clk 0:02:57.3]} 5. e3 {[%clk 0:03:01.2]}
5... b5 {[%clk 0:02:56.6]} 6. b3 {[%clk 0:02:58.9]} 6... Bg4 {[%clk 0:02:55.3]}
7. Bd3 {[%clk 0:02:57]} 7... e6 {[%clk 0:02:53]} 8. h3 {[%clk 0:02:55.4]} 8...
Bxf3 {[%clk 0:02:52.4]} 9. Qxf3 {[%clk 0:02:56.3]} 9... Nbd7 {[%clk 0:02:51.2]}
10. O-O {[%clk 0:02:56]} 10... Bb4 {[%clk 0:02:46.5]} 11. Bb2 {[%clk 0:02:44.7]}
11... bxc4 {[%clk 0:02:39.8]} 12. bxc4 {[%clk 0:02:42.4]} 12... Rb8 {[%clk
0:02:38.3]} 13. Ne2 {[%clk 0:02:26.4]} 13... a5 {[%clk 0:02:32.5]} 14. c5 {[%clk
0:02:14.1]} 14... a4 {[%clk 0:02:31.5]} 15. Rab1 {[%clk 0:02:14.7]} 15... O-O
{[%clk 0:02:26.7]} 16. a3 {[%clk 0:02:01.2]} 16... Ba5 {[%clk 0:02:24.7]} 17.
Bc2 {[%clk 0:02:01.2]} 17... Qc7 {[%clk 0:02:12.2]} 18. Bxa4 {[%clk 0:01:57.4]}
18... Ne4 {[%clk 0:02:12.3]} 19. Nf4 {[%clk 0:01:23.9]} 19... Nd2 {[%clk
0:02:08.3]} 20. Qe2 {[%clk 0:01:24.1]} 20... Nxb1 {[%clk 0:02:03.9]} 21. Rxb1
{[%clk 0:01:24.8]} 21... Bc3 {[%clk 0:02:04.1]} 22. Qc2 {[%clk 0:01:15.4]} 22...
Bxb2 {[%clk 0:02:00.6]} 23. Rxb2 {[%clk 0:01:16.3]} 23... Rxb2 {[%clk
0:02:00.9]} 24. Qxb2 {[%clk 0:01:17.1]} 24... Rb8 {[%clk 0:02:01]} 25. Qc2
{[%clk 0:01:17.8]} 25... e5 {[%clk 0:01:58.9]} 26. Nd3 {[%clk 0:01:17.4]} 26...
exd4 {[%clk 0:01:46.5]} 27. exd4 {[%clk 0:01:17.5]} 27... g6 {[%clk 0:01:46.8]}
28. Nb4 {[%clk 0:01:14.1]} 28... Re8 {[%clk 0:01:41]} 29. g3 {[%clk 0:01:00.4]}
29... Re6 {[%clk 0:01:39.9]} 30. Qd3 {[%clk 0:00:52.5]} 30... h5 {[%clk
0:01:32.6]} 31. h4 {[%clk 0:00:52.4]} 31... Nf6 {[%clk 0:01:27.5]} 32. Qa6
{[%clk 0:00:41.8]} 32... Ng4 {[%clk 0:01:23.9]} 33. Bxc6 {[%clk 0:00:38.2]}
33... Re2 {[%clk 0:01:04.7]} 34. Qxe2 {[%clk 0:00:37.7]} 1-0

[Event "Early-Titled-Tuesday-Blitz-November-28-2023"]
[Site "Chess.com"]
[Date "2023.11.28"]
[Round "1"]
[White "inagreV"]
[Black "Abund"]
[Result "0-1"]
[WhiteElo "2443"]
[BlackElo "2789"]
[TimeControl "180+1"]
[EndTime "8:05:56 PST"]
[Termination "Abund won by resignation"]

1. e4 {[%clk 0:02:56.6]} 1... e5 {[%clk 0:03:00.1]} 2. Nf3 {[%clk 0:02:55]} 2...
Nc6 {[%clk 0:03:00.7]} 3. Bc4 {[%clk 0:02:53.6]} 3... Bc5 {[%clk 0:03:00.2]} 4.
d3 {[%clk 0:02:51.9]} 4... Nf6 {[%clk 0:03:00.5]} 5. c3 {[%clk 0:02:48]} 5...
O-O {[%clk 0:03:00.7]} 6. b4 {[%clk 0:01:54]} 6... Be7 {[%clk 0:02:52.9]} 7. Bg5
{[%clk 0:01:53.6]} 7... d6 {[%clk 0:02:28.8]} 8. Nbd2 {[%clk 0:01:52]} 8... Be6
{[%clk 0:02:28.7]} 9. h3 {[%clk 0:01:50.1]} 9... d5 {[%clk 0:02:24.9]} 10. Bxf6
{[%clk 0:01:46.9]} 10... Bxf6 {[%clk 0:02:22.3]} 11. exd5 {[%clk 0:01:47.3]}
11... Bxd5 {[%clk 0:02:22.8]} 12. Qe2 {[%clk 0:01:38.6]} 12... Re8 {[%clk
0:02:18.4]} 13. Ne4 {[%clk 0:01:37.3]} 13... Be7 {[%clk 0:02:13.2]} 14. O-O
{[%clk 0:01:30.6]} 14... Bf8 {[%clk 0:02:06.8]} 15. Rfe1 {[%clk 0:01:17.4]}
15... a6 {[%clk 0:02:06.2]} 16. Ng3 {[%clk 0:01:16.9]} 16... Bxc4 {[%clk
0:01:54.3]} 17. dxc4 {[%clk 0:01:16.6]} 17... e4 {[%clk 0:01:51.9]} 18. Nd2
{[%clk 0:01:12.1]} 18... g6 {[%clk 0:01:33.9]} 19. f3 {[%clk 0:00:54.2]} 19...
e3 {[%clk 0:01:18.5]} 20. Nde4 {[%clk 0:00:47.6]} 20... f5 {[%clk 0:01:16]} 21.
c5 {[%clk 0:00:47]} 21... fxe4 {[%clk 0:01:09.3]} 22. Qc4+ {[%clk 0:00:46.6]}
22... Kh8 {[%clk 0:01:08]} 23. Nxe4 {[%clk 0:00:44.9]} 23... Ne5 {[%clk
0:01:03.5]} 24. Qb3 {[%clk 0:00:38.1]} 24... Bh6 {[%clk 0:00:59.6]} 25. Rad1
{[%clk 0:00:36.7]} 25... Qh4 {[%clk 0:00:57.7]} 26. Rd5 {[%clk 0:00:22.5]} 26...
Qxe1+ {[%clk 0:00:55.2]} 0-1

[Event "Early-Titled-Tuesday-Blitz-November-28-2023"]
[Site "Chess.com"]
[Date "2023.11.28"]
[Round "1"]
[White "AljoschaFeuerstack"]
[Black "LuisFSiles"]
[Result "1-0"]
[WhiteElo "2645"]
[BlackElo "2339"]
[TimeControl "180+1"]
[EndTime "8:05:58 PST"]
[Termination "AljoschaFeuerstack won by resignation"]

1. e4 {[%clk 0:03:00.9]} 1... c5 {[%clk 0:02:58.9]} 2. Nf3 {[%clk 0:03:00.4]}
2... Nc6 {[%clk 0:02:59.1]} 3. d3 {[%clk 0:03:00.2]} 3... g6 {[%clk 0:02:58.6]}
4. g3 {[%clk 0:03:00.6]} 4... Bg7 {[%clk 0:02:58.8]} 5. Bg2 {[%clk 0:03:01.2]}
5... d6 {[%clk 0:02:59.1]} 6. O-O {[%clk 0:03:01.6]} 6... Nf6 {[%clk 0:02:59.7]}
7. Re1 {[%clk 0:03:00]} 7... Bg4 {[%clk 0:02:57.4]} 8. h3 {[%clk 0:02:51.8]}
8... Bxf3 {[%clk 0:02:57.4]} 9. Bxf3 {[%clk 0:02:51.9]} 9... O-O {[%clk
0:02:56.7]} 10. c3 {[%clk 0:02:50.9]} 10... e5 {[%clk 0:02:52]} 11. a3 {[%clk
0:02:45.1]} 11... h6 {[%clk 0:02:51]} 12. b4 {[%clk 0:02:42.7]} 12... b6 {[%clk
0:02:50.4]} 13. Be3 {[%clk 0:02:35.6]} 13... a5 {[%clk 0:02:38.9]} 14. b5 {[%clk
0:02:10.9]} 14... Ne7 {[%clk 0:02:38.5]} 15. Nd2 {[%clk 0:02:06.9]} 15... Ra7
{[%clk 0:02:33]} 16. Nc4 {[%clk 0:02:02.1]} 16... Ne8 {[%clk 0:02:21.3]} 17. Qd2
{[%clk 0:01:39.7]} 17... Kh7 {[%clk 0:02:20.7]} 18. Bg2 {[%clk 0:01:40]} 18...
f5 {[%clk 0:02:20.4]} 19. f4 {[%clk 0:01:40.4]} 19... exf4 {[%clk 0:02:07.2]}
20. Bxf4 {[%clk 0:01:33.1]} 20... d5 {[%clk 0:01:53.3]} 21. exd5 {[%clk
0:01:30]} 21... Nxd5 {[%clk 0:01:52.6]} 22. Bxd5 {[%clk 0:01:20.4]} 22... Qxd5
{[%clk 0:01:51.7]} 23. Nxb6 {[%clk 0:01:20.8]} 23... Qb7 {[%clk 0:01:38.5]} 24.
Re6 {[%clk 0:01:19.9]} 24... Nc7 {[%clk 0:01:35.3]} 25. Re7 {[%clk 0:00:17.7]}
25... Qxb6 {[%clk 0:01:33.7]} 26. Bxh6 {[%clk 0:00:18.3]} 26... Rg8 {[%clk
0:01:31]} 27. Rae1 {[%clk 0:00:18.5]} 27... Nd5 {[%clk 0:01:25.7]} 28. Bxg7
{[%clk 0:00:15.8]} 28... Rxg7 {[%clk 0:01:22.2]} 29. R7e6 {[%clk 0:00:16.2]}
29... Qd8 {[%clk 0:01:20.7]} 30. c4 {[%clk 0:00:14.9]} 30... Nf6 {[%clk
0:01:18.6]} 31. Qg5 {[%clk 0:00:15.2]} 31... Nh5 {[%clk 0:01:18]} 32. Qxd8
{[%clk 0:00:14.1]} 1-0

[Event "Early-Titled-Tuesday-Blitz-November-28-2023"]
[Site "Chess.com"]
[Date "2023.11.28"]
[Round "1"]
[White "CristianS27"]
[Black "talaicito"]
[Result "1-0"]
[WhiteElo "2569"]
[BlackElo "2208"]
[TimeControl "180+1"]
[EndTime "8:06:02 PST"]
[Termination "CristianS27 won on time"]

1. e4 {[%clk 0:02:59.9]} 1... c5 {[%clk 0:02:59.5]} 2. Nf3 {[%clk 0:02:55.4]}
2... d6 {[%clk 0:02:59.8]} 3. d4 {[%clk 0:02:54.8]} 3... cxd4 {[%clk 0:03:00.7]}
4. Nxd4 {[%clk 0:02:55.6]} 4... Nf6 {[%clk 0:03:01.4]} 5. Nc3 {[%clk 0:02:56]}
5... g6 {[%clk 0:03:02.3]} 6. Be3 {[%clk 0:02:53.7]} 6... Bg7 {[%clk 0:03:02]}
7. f3 {[%clk 0:02:54.1]} 7... O-O {[%clk 0:03:02.1]} 8. Qd2 {[%clk 0:02:54.8]}
8... Nc6 {[%clk 0:03:01.6]} 9. Bc4 {[%clk 0:02:55.5]} 9... Bd7 {[%clk
0:02:54.3]} 10. O-O-O {[%clk 0:02:55.7]} 10... Rc8 {[%clk 0:02:53]} 11. Bb3
{[%clk 0:02:54.5]} 11... Nxd4 {[%clk 0:02:53]} 12. Bxd4 {[%clk 0:02:55.4]} 12...
b5 {[%clk 0:02:53.4]} 13. Nd5 {[%clk 0:02:55.8]} 13... Nxd5 {[%clk 0:02:50.9]}
14. Bxg7 {[%clk 0:02:56.7]} 14... Kxg7 {[%clk 0:02:49]} 15. exd5 {[%clk
0:02:57.6]} 15... a5 {[%clk 0:02:44.2]} 16. a3 {[%clk 0:02:58.1]} 16... Qb6
{[%clk 0:02:30.5]} 17. g4 {[%clk 0:02:56.5]} 17... h5 {[%clk 0:02:20.4]} 18. h3
{[%clk 0:02:20.1]} 18... b4 {[%clk 0:02:02.4]} 19. a4 {[%clk 0:02:19.2]} 19...
Kg8 {[%clk 0:01:12.6]} 20. gxh5 {[%clk 0:02:04.7]} 20... Bf5 {[%clk 0:01:11.4]}
21. hxg6 {[%clk 0:02:04.6]} 21... fxg6 {[%clk 0:01:04.2]} 22. Rhg1 {[%clk
0:01:59]} 22... Kh7 {[%clk 0:00:56.5]} 23. Rde1 {[%clk 0:01:50.7]} 23... Rc7
{[%clk 0:00:54.9]} 24. Qg5 {[%clk 0:01:50.6]} 24... Rf7 {[%clk 0:00:18.7]} 25.
Re6 {[%clk 0:01:47.2]} 25... Rg7 {[%clk 0:00:08.1]} 26. Re2 {[%clk 0:01:27.8]}
26... Qc5 {[%clk 0:00:07.9]} 27. Rge1 {[%clk 0:01:26]} 27... Kg8 {[%clk
0:00:02.3]} 28. Rxe7 {[%clk 0:01:11.3]} 28... Rgxe7 {[%clk 0:00:01.4]} 29. Rxe7
{[%clk 0:01:10.1]} 1-0

[Event "Early-Titled-Tuesday-Blitz-November-28-2023"]
[Site "Chess.com"]
[Date "2023.11.28"]
[Round "1"]
[White "GMKrikor"]
[Black "SHIVACalypso"]
[Result "1-0"]
[WhiteElo "2783"]
[BlackElo "2438"]
[TimeControl "180+1"]
[EndTime "8:06:06 PST"]
[Termination "GMKrikor won by resignation"]

1. Nf3 {[%clk 0:03:00.1]} 1... f6 {[%clk 0:02:52.2]} 2. e4 {[%clk 0:02:56.1]}
2... b6 {[%clk 0:02:49.8]} 3. d4 {[%clk 0:02:55.2]} 3... Bb7 {[%clk 0:02:49.9]}
4. Nc3 {[%clk 0:02:51.7]} 4... d6 {[%clk 0:02:48.5]} 5. Bc4 {[%clk 0:02:51.1]}
5... c5 {[%clk 0:02:40.9]} 6. O-O {[%clk 0:02:45.8]} 6... Nc6 {[%clk 0:02:38.9]}
7. Re1 {[%clk 0:02:40.6]} 7... cxd4 {[%clk 0:02:37.7]} 8. Nxd4 {[%clk
0:02:39.7]} 8... Nxd4 {[%clk 0:02:38]} 9. Qxd4 {[%clk 0:02:40.6]} 9... e5 {[%clk
0:02:34.8]} 10. Qd3 {[%clk 0:02:37.2]} 10... Ne7 {[%clk 0:02:32.1]} 11. Be3
{[%clk 0:02:24.5]} 11... Rc8 {[%clk 0:02:29.7]} 12. Rad1 {[%clk 0:02:23.5]}
12... Nc6 {[%clk 0:02:29.3]} 13. a3 {[%clk 0:02:20]} 13... Be7 {[%clk
0:02:21.3]} 14. Ba2 {[%clk 0:02:19.5]} 14... Qc7 {[%clk 0:02:21.2]} 15. Nb5
{[%clk 0:02:19.4]} 15... Qb8 {[%clk 0:02:20.4]} 16. Nxd6+ {[%clk 0:02:13.8]}
16... Bxd6 {[%clk 0:02:21.3]} 17. Qxd6 {[%clk 0:02:14.1]} 17... Qxd6 {[%clk
0:02:21.9]} 18. Rxd6 {[%clk 0:02:14.8]} 18... Ke7 {[%clk 0:02:11.2]} 19. Re6+
{[%clk 0:01:38.9]} 19... Kd7 {[%clk 0:02:10.4]} 20. Rd1+ {[%clk 0:01:38.9]}
20... Kc7 {[%clk 0:02:11]} 21. Bd5 {[%clk 0:00:55.3]} 21... Rhd8 {[%clk
0:02:09.2]} 22. g4 {[%clk 0:00:49.5]} 22... Rd7 {[%clk 0:02:00.5]} 23. c4 {[%clk
0:00:36.4]} 23... Rf8 {[%clk 0:01:44.9]} 24. c5 {[%clk 0:00:36.6]} 24... Nd8
{[%clk 0:01:41.4]} 25. cxb6+ {[%clk 0:00:27.5]} 25... axb6 {[%clk 0:01:41.2]}
26. Bxb6+ {[%clk 0:00:27.3]} 26... Kb8 {[%clk 0:01:38.1]} 27. Bxd8 {[%clk
0:00:19.5]} 27... Rfxd8 {[%clk 0:01:39]} 28. Rb6 {[%clk 0:00:17.2]} 28... Ka7
{[%clk 0:01:36.8]} 29. Rb5 {[%clk 0:00:17.5]} 29... Rc8 {[%clk 0:01:13.5]} 30.
Rxb7+ {[%clk 0:00:16.2]} 30... Rxb7 {[%clk 0:01:12.3]} 31. Bxb7 {[%clk
0:00:17.1]} 31... Kxb7 {[%clk 0:01:13.2]} 32. Rd7+ {[%clk 0:00:17.1]} 32... Kb6
{[%clk 0:01:12.9]} 33. Rxg7 {[%clk 0:00:17.2]} 33... Rc4 {[%clk 0:01:13.6]} 34.
f3 {[%clk 0:00:16.9]} 34... Rc2 {[%clk 0:01:13.4]} 35. Rxh7 {[%clk 0:00:17.4]}
35... Kc5 {[%clk 0:01:14]} 36. Rc7+ {[%clk 0:00:15.6]} 1-0

[Event "Early-Titled-Tuesday-Blitz-November-28-2023"]
[Site "Chess.com"]
[Date "2023.11.28"]
[Round "1"]
[White "salomez"]
[Black "Alexchess1984"]
[Result "0-1"]
[WhiteElo "2402"]
[BlackElo "2703"]
[TimeControl "180+1"]
[EndTime "8:06:11 PST"]
[Termination "Alexchess1984 won on time"]

1. d4 {[%clk 0:03:00.9]} 1... Nf6 {[%clk 0:02:58.8]} 2. e3 {[%clk 0:03:01]} 2...
d5 {[%clk 0:02:58.2]} 3. Nf3 {[%clk 0:02:58.6]} 3... g6 {[%clk 0:02:47.9]} 4.
Be2 {[%clk 0:02:56.9]} 4... Bg7 {[%clk 0:02:48.4]} 5. b3 {[%clk 0:02:56.5]} 5...
O-O {[%clk 0:02:49.3]} 6. Bb2 {[%clk 0:02:56.3]} 6... Ne4 {[%clk 0:02:49.2]} 7.
O-O {[%clk 0:02:46.8]} 7... c5 {[%clk 0:02:49.2]} 8. c4 {[%clk 0:02:46]} 8...
dxc4 {[%clk 0:02:46.8]} 9. Bxc4 {[%clk 0:02:43.9]} 9... Nc6 {[%clk 0:02:45.4]}
10. Nbd2 {[%clk 0:02:36.3]} 10... Nxd2 {[%clk 0:02:43.6]} 11. Qxd2 {[%clk
0:02:36.4]} 11... cxd4 {[%clk 0:02:43.9]} 12. exd4 {[%clk 0:02:03.7]} 12... Bg4
{[%clk 0:02:41.9]} 13. Rad1 {[%clk 0:01:40.4]} 13... Bxf3 {[%clk 0:02:40.3]} 14.
gxf3 {[%clk 0:01:40]} 14... Rc8 {[%clk 0:02:27.6]} 15. Rfe1 {[%clk 0:01:16.7]}
15... Qd6 {[%clk 0:02:05.8]} 16. d5 {[%clk 0:00:40.2]} 16... Ne5 {[%clk
0:01:55.7]} 17. Bxe5 {[%clk 0:00:37.9]} 17... Bxe5 {[%clk 0:01:55.3]} 18. h3
{[%clk 0:00:37.6]} 18... Bf6 {[%clk 0:01:51.6]} 19. Re4 {[%clk 0:00:31.1]} 19...
a6 {[%clk 0:01:49.7]} 20. a4 {[%clk 0:00:30.7]} 20... Qd7 {[%clk 0:01:35.8]} 21.
Kg2 {[%clk 0:00:22.7]} 21... b5 {[%clk 0:01:33.8]} 22. axb5 {[%clk 0:00:21.8]}
22... axb5 {[%clk 0:01:34.7]} 23. Bf1 {[%clk 0:00:20.8]} 23... Rc3 {[%clk
0:01:31.7]} 24. b4 {[%clk 0:00:16.8]} 24... Ra8 {[%clk 0:01:24.1]} 25. Qe2
{[%clk 0:00:16.5]} 25... Raa3 {[%clk 0:01:11.6]} 26. Qxb5 {[%clk 0:00:15.8]}
26... Qf5 {[%clk 0:01:11.2]} 27. Qb8+ {[%clk 0:00:08.6]} 27... Kg7 {[%clk
0:01:10.1]} 28. Be2 {[%clk 0:00:07.4]} 28... Rxf3 {[%clk 0:01:08.8]} 29. Bxf3
{[%clk 0:00:01.3]} 29... Qxf3+ {[%clk 0:01:09.7]} 30. Kg1 {[%clk 0:00:01.4]}
30... Qxd1+ {[%clk 0:01:09.5]} 0-1

[Event "Early-Titled-Tuesday-Blitz-November-28-2023"]
[Site "Chess.com"]
[Date "2023.11.28"]
[Round "1"]
[White "DenisQ"]
[Black "Magila31"]
[Result "1/2-1/2"]
[WhiteElo "2642"]
[BlackElo "2359"]
[TimeControl "180+1"]
[EndTime "8:06:15 PST"]
[Termination "Game drawn by agreement"]

1. Nf3 {[%clk 0:02:59]} 1... g6 {[%clk 0:02:59.3]} 2. g3 {[%clk 0:02:58.5]} 2...
Bg7 {[%clk 0:02:59.1]} 3. Bg2 {[%clk 0:02:59.1]} 3... Nf6 {[%clk 0:02:57.9]} 4.
O-O {[%clk 0:02:59.1]} 4... O-O {[%clk 0:02:58]} 5. c4 {[%clk 0:02:59.2]} 5...
c6 {[%clk 0:02:57.3]} 6. Nc3 {[%clk 0:02:56]} 6... d5 {[%clk 0:02:56.2]} 7. cxd5
{[%clk 0:02:55.9]} 7... cxd5 {[%clk 0:02:55.7]} 8. d4 {[%clk 0:02:56.1]} 8...
Ne4 {[%clk 0:02:55.7]} 9. Ne5 {[%clk 0:02:53.4]} 9... Nxc3 {[%clk 0:02:37.1]}
10. bxc3 {[%clk 0:02:54.3]} 10... Nd7 {[%clk 0:02:37.1]} 11. Nxd7 {[%clk
0:02:45.3]} 11... Qxd7 {[%clk 0:02:36.5]} 12. Qb3 {[%clk 0:02:41.3]} 12... Rd8
{[%clk 0:02:29.9]} 13. e4 {[%clk 0:02:21.4]} 13... dxe4 {[%clk 0:02:18.8]} 14.
Bxe4 {[%clk 0:02:22.3]} 14... Qc7 {[%clk 0:02:14.6]} 15. Bf4 {[%clk 0:02:03.5]}
15... e5 {[%clk 0:02:09.7]} 16. Bxe5 {[%clk 0:01:37.3]} 16... Bxe5 {[%clk
0:02:08.6]} 17. dxe5 {[%clk 0:01:38.2]} 17... Qxe5 {[%clk 0:02:08.5]} 18. Rfe1
{[%clk 0:01:33.3]} 18... Qc7 {[%clk 0:02:06.6]} 19. Bd5 {[%clk 0:01:26.1]} 19...
a5 {[%clk 0:01:40.9]} 20. Re3 {[%clk 0:00:53.4]} 20... a4 {[%clk 0:01:37]} 21.
Qc4 {[%clk 0:00:44.4]} 21... Qxc4 {[%clk 0:01:31.3]} 22. Bxc4 {[%clk 0:00:45.3]}
22... Ra5 {[%clk 0:01:15.4]} 23. Rae1 {[%clk 0:00:35.5]} 23... Rc5 {[%clk
0:01:12.3]} 24. Bf1 {[%clk 0:00:20.3]} 24... Be6 {[%clk 0:01:10]} 25. a3 {[%clk
0:00:19.6]} 25... Rdc8 {[%clk 0:01:09.4]} 26. Rc1 {[%clk 0:00:17.7]} 26... Kg7
{[%clk 0:01:06.3]} 27. Bg2 {[%clk 0:00:17.6]} 27... b6 {[%clk 0:01:05.4]} 28. h4
{[%clk 0:00:16.4]} 28... h5 {[%clk 0:01:03.4]} 29. Be4 {[%clk 0:00:16.3]} 29...
Bd5 {[%clk 0:00:55.9]} 30. Bxd5 {[%clk 0:00:15.9]} 30... Rxd5 {[%clk 0:00:55.6]}
31. Rb1 {[%clk 0:00:16.8]} 31... Rdc5 {[%clk 0:00:53.1]} 32. Rxb6 {[%clk
0:00:14.3]} 1/2-1/2

[Event "Early-Titled-Tuesday-Blitz-November-28-2023"]
[Site "Chess.com"]
[Date "2023.11.28"]
[Round "1"]
[White "SnekkerAndersen"]
[Black "kkpanu9"]
[Result "1-0"]
[WhiteElo "2537"]
[BlackElo "2040"]
[TimeControl "180+1"]
[EndTime "8:06:17 PST"]
[Termination "SnekkerAndersen won on time"]

1. d4 {[%clk 0:02:58.7]} 1... Nf6 {[%clk 0:02:57.3]} 2. c4 {[%clk 0:02:56.7]}
2... e6 {[%clk 0:02:57.4]} 3. Nf3 {[%clk 0:02:56.5]} 3... d5 {[%clk 0:02:56.9]}
4. g3 {[%clk 0:02:52.3]} 4... Be7 {[%clk 0:02:55]} 5. Bg2 {[%clk 0:02:52.6]}
5... O-O {[%clk 0:02:54.4]} 6. O-O {[%clk 0:02:53.2]} 6... c6 {[%clk 0:02:53.3]}
7. b3 {[%clk 0:02:52.3]} 7... Nbd7 {[%clk 0:02:51.1]} 8. Bb2 {[%clk 0:02:49.4]}
8... b6 {[%clk 0:02:37.3]} 9. Nc3 {[%clk 0:02:38.9]} 9... Ba6 {[%clk 0:02:34]}
10. Nd2 {[%clk 0:02:32.2]} 10... b5 {[%clk 0:02:25.3]} 11. cxb5 {[%clk
0:02:17.9]} 11... cxb5 {[%clk 0:02:23.6]} 12. Re1 {[%clk 0:02:18.4]} 12... b4
{[%clk 0:02:13.3]} 13. Na4 {[%clk 0:02:17.9]} 13... Bb5 {[%clk 0:02:03.5]} 14.
e4 {[%clk 0:02:16.9]} 14... Bxa4 {[%clk 0:01:35]} 15. bxa4 {[%clk 0:02:17.8]}
15... Rc8 {[%clk 0:01:25]} 16. a3 {[%clk 0:02:12.9]} 16... bxa3 {[%clk
0:01:13.2]} 17. Bxa3 {[%clk 0:02:12.9]} 17... Bxa3 {[%clk 0:01:10.5]} 18. Rxa3
{[%clk 0:02:13.8]} 18... dxe4 {[%clk 0:01:08]} 19. Nxe4 {[%clk 0:02:13.7]} 19...
Nxe4 {[%clk 0:01:06]} 20. Bxe4 {[%clk 0:02:14.6]} 20... Nf6 {[%clk 0:01:04]} 21.
Bf3 {[%clk 0:02:12.3]} 21... Nd5 {[%clk 0:00:58.7]} 22. Rb3 {[%clk 0:02:12.3]}
22... Qa5 {[%clk 0:00:57.2]} 23. Rb5 {[%clk 0:02:10.9]} 23... Qd8 {[%clk
0:00:18.1]} 24. Bxd5 {[%clk 0:02:10.5]} 24... exd5 {[%clk 0:00:18.2]} 25. Qf3
{[%clk 0:02:10.9]} 25... Qd7 {[%clk 0:00:17.4]} 26. Qxd5 {[%clk 0:02:08.3]}
26... Qg4 {[%clk 0:00:07]} 27. Qe4 {[%clk 0:02:04.2]} 27... Qd7 {[%clk
0:00:04.5]} 28. Reb1 {[%clk 0:01:31.2]} 28... g6 {[%clk 0:00:02.2]} 29. Qd5
{[%clk 0:01:28.2]} 29... Qg4 {[%clk 0:00:01.3]} 30. Rb7 {[%clk 0:00:59.4]} 30...
Rc2 {[%clk 0:00:01.2]} 31. Rf1 {[%clk 0:00:58]} 1-0

[Event "Early-Titled-Tuesday-Blitz-November-28-2023"]
[Site "Chess.com"]
[Date "2023.11.28"]
[Round "1"]
[White "Iball95"]
[Black "tomesao"]
[Result "1/2-1/2"]
[WhiteElo "2855"]
[BlackElo "2492"]
[TimeControl "180+1"]
[EndTime "8:06:18 PST"]
[Termination "Game drawn by repetition"]

1. e4 {[%clk 0:03:00.9]} 1... c6 {[%clk 0:03:00]} 2. d4 {[%clk 0:03:00.3]} 2...
d5 {[%clk 0:03:00.9]} 3. exd5 {[%clk 0:03:00.9]} 3... cxd5 {[%clk 0:03:01.1]} 4.
c4 {[%clk 0:03:01.4]} 4... Nf6 {[%clk 0:03:01.2]} 5. Nc3 {[%clk 0:03:01.8]} 5...
Nc6 {[%clk 0:03:01.3]} 6. Nf3 {[%clk 0:03:02.2]} 6... Bg4 {[%clk 0:02:59.9]} 7.
cxd5 {[%clk 0:03:01.5]} 7... Nxd5 {[%clk 0:03:00.1]} 8. h3 {[%clk 0:03:02.2]}
8... Bxf3 {[%clk 0:02:58.5]} 9. Qxf3 {[%clk 0:03:03.1]} 9... e6 {[%clk
0:02:57.6]} 10. Bb5 {[%clk 0:03:03]} 10... Be7 {[%clk 0:02:57.1]} 11. O-O {[%clk
0:03:02.9]} 11... O-O {[%clk 0:02:57]} 12. Nxd5 {[%clk 0:03:03.5]} 12... Qxd5
{[%clk 0:02:55.2]} 13. Qxd5 {[%clk 0:03:02.9]} 13... exd5 {[%clk 0:02:56.1]} 14.
Be3 {[%clk 0:03:03.4]} 14... Bf6 {[%clk 0:02:55.9]} 15. Rfd1 {[%clk 0:03:01.9]}
15... Rac8 {[%clk 0:02:55.7]} 16. Rac1 {[%clk 0:02:57.3]} 16... a6 {[%clk
0:02:54.5]} 17. Ba4 {[%clk 0:02:42.2]} 17... Rfd8 {[%clk 0:02:42.9]} 18. Kf1
{[%clk 0:02:32.2]} 18... Nb4 {[%clk 0:02:31.5]} 19. Bb3 {[%clk 0:01:49.1]} 19...
Rxc1 {[%clk 0:02:18]} 20. Rxc1 {[%clk 0:01:49.5]} 20... Nc6 {[%clk 0:02:17.4]}
21. Rd1 {[%clk 0:01:48.2]} 21... Na5 {[%clk 0:02:13.2]} 22. Bc2 {[%clk
0:01:41.8]} 22... Nc4 {[%clk 0:02:10.3]} 23. Bc1 {[%clk 0:01:38.8]} 23... g6
{[%clk 0:02:10.2]} 24. b3 {[%clk 0:01:37.2]} 24... Nd6 {[%clk 0:02:09.6]} 25.
Be3 {[%clk 0:01:32.7]} 25... Rc8 {[%clk 0:02:09.3]} 26. Bd3 {[%clk 0:01:29.3]}
26... Nb5 {[%clk 0:02:09.2]} 27. Bxb5 {[%clk 0:00:38.6]} 27... axb5 {[%clk
0:02:10.1]} 28. Ke2 {[%clk 0:00:37.4]} 28... Rc2+ {[%clk 0:02:06.8]} 29. Rd2
{[%clk 0:00:38]} 29... Rxd2+ {[%clk 0:01:54.5]} 30. Kxd2 {[%clk 0:00:38.9]}
30... Kf8 {[%clk 0:01:54.6]} 31. Kc3 {[%clk 0:00:32.4]} 31... Be7 {[%clk
0:01:54.6]} 32. Bf4 {[%clk 0:00:30]} 32... Ke8 {[%clk 0:01:54.2]} 33. f3 {[%clk
0:00:29.9]} 33... Kd7 {[%clk 0:01:53.8]} 34. g4 {[%clk 0:00:27.8]} 34... Kc6
{[%clk 0:01:53.4]} 35. Kd3 {[%clk 0:00:28.2]} 35... Bd8 {[%clk 0:01:52.6]} 36.
Be5 {[%clk 0:00:28.5]} 36... Bg5 {[%clk 0:01:51.7]} 37. Bg3 {[%clk 0:00:27.9]}
37... Bc1 {[%clk 0:01:50.6]} 38. Be5 {[%clk 0:00:27.6]} 38... Bg5 {[%clk
0:01:49.6]} 39. Bg3 {[%clk 0:00:27]} 39... Bc1 {[%clk 0:01:49.1]} 40. Bh4 {[%clk
0:00:27.2]} 40... Bb2 {[%clk 0:01:47.2]} 41. Bg5 {[%clk 0:00:26.7]} 41... Ba3
{[%clk 0:01:44.5]} 42. Bh6 {[%clk 0:00:26.7]} 42... Bd6 {[%clk 0:01:44.1]} 43.
h4 {[%clk 0:00:26.6]} 43... Be7 {[%clk 0:01:43.5]} 44. h5 {[%clk 0:00:26.9]}
44... Kd7 {[%clk 0:01:43.1]} 45. hxg6 {[%clk 0:00:25.2]} 45... hxg6 {[%clk
0:01:41.5]} 46. Bf4 {[%clk 0:00:24.8]} 46... Kc6 {[%clk 0:01:41.5]} 47. Be5
{[%clk 0:00:25]} 47... Bf8 {[%clk 0:01:40.9]} 48. Ke3 {[%clk 0:00:24.3]} 48...
Bh6+ {[%clk 0:01:40.8]} 49. Bf4 {[%clk 0:00:24.6]} 49... Bg7 {[%clk 0:01:41]}
50. Be5 {[%clk 0:00:24.8]} 50... Bh6+ {[%clk 0:01:40.9]} 51. Kd3 {[%clk
0:00:23.4]} 51... Bf8 {[%clk 0:01:40.3]} 52. Bf6 {[%clk 0:00:23.2]} 52... Bd6
{[%clk 0:01:39.7]} 53. Bg7 {[%clk 0:00:23.3]} 53... Be7 {[%clk 0:01:39.4]} 54.
Be5 {[%clk 0:00:23.6]} 54... Bf8 {[%clk 0:01:38.4]} 1/2-1/2